[Event "Navidad Barcelona IM2 2024"]
[Site "Barcelona"]
[Date "2024.12.27"]
[Round "2.3"]
[White "Martin Barcelo, Carles"]
[Black "Rojas Keim, Luis"]
[Result "1/2-1/2"]
[ECO "A30"]
[WhiteElo "2257"]
[BlackElo "2326"]
[Annotator "RC"]
[PlyCount "64"]
[EventDate "2024.12.26"]
[EventCountry "ESP"]
[SourceTitle "playchess.com"]
[Source "ChessBase"]
[SourceQuality "1"]
[TimeControl "5400+30"]

1. e4 {[%emt 0:02:57]} c5 {[%emt 0:00:07]} 2. Nf3 {[%emt 0:00:49]} e6 {[%emt 0:00:12]} 3. g3 {[%emt 0:01:36]} Nc6 {[%emt 0:00:24]} 4. Bg2 {[%emt 0:00:20]} Nf6 {[%emt 0:00:10]} 5. d3 {[%emt 0:00:46]} d6 {[%emt 0:02:16]} 6. O-O {[%emt 0:00:29]} Be7 {[%emt 0:01:09]} 7. c4 {[%emt 0:00:58]} O-O {[%emt 0:00:11]} 8. Nc3 {[%emt 0:00:05]} a6 {[%emt 0:02:17]} 9. d4 {[%emt 0:00:47]} cxd4 {[%emt 0:00:18]} 10. Nxd4 {[%emt 0:00:08]} Nxd4 {[%emt 0:02:34]} 11. Qxd4 {[%emt 0:00:08]} Bd7 {[%emt 0:00:03]} 12. e5 {[%emt 0:05:44]} dxe5 {[%emt 0:00:26]} 13. Qxe5 {[%emt 0:00:08]} Qc8 {[%emt 0:02:05]} 14. b3 {[%emt 0:16:10]} Bc6 {[%emt 0:01:59]} 15. Bxc6 {[%emt 0:00:32]} Qxc6 {[%emt 0:00:06]} 16. Bb2 {[%emt 0:00:06]} Rfd8 {[%emt 0:10:53]} 17. Rfd1 {[%emt 0:02:24]} h5 {[%emt 0:18:51]} 18. Rxd8+ {[%emt 0:27:17]} Rxd8 {[%emt 0:03:05]} 19. Rd1 {[%emt 0:00:09]} Rxd1+ {[%emt 0:00:48]} 20. Nxd1 {[%emt 0:00:05]} Qf3 {[%emt 0:02:16]} 21. Ne3 {[%emt 0:02:16]} Bb4 {[%emt 0:14:02]} 22. Nf1 {[%emt 0:04:08]} h4 {[%emt 0:07:53]} 23. gxh4 {[%emt 0:03:31]} Kh7 {[%emt 0:08:51]} 24. Qg3 {[%emt 0:03:45]} Qf5 {[%emt 0:02:54]} 25. Qg5 {[%emt 0:02:01]} Qf3 {[%emt 0:00:26]} 26. Qg3 {[%emt 0:05:45]} Qc6 {[%emt 0:03:25]} 27. Ne3 {[%emt 0:11:50]} Qe4 {[%emt 0:04:03]} 28. Bxf6 {[%emt 0:04:26]} gxf6 {[%emt 0:00:07]} 29. Qc7 {[%emt 0:01:08]} Kg7 {[%emt 0:01:08]} 30. Qg3+ {[%emt 0:00:45]} Kh7 {[%emt 0:00:37]} 31. Qc7 {[%emt 0:03:57]} Kg7 {[%emt 0:03:09]} 32. Qg3+ {[%emt 0:00:22]} Kh7 {[%emt 0:09:45]} 1/2-1/2

[Event "Navidad Barcelona IM2 2024"]
[Site "Barcelona"]
[Date "2024.12.27"]
[Round "2.4"]
[White "Abreu Sanchez, Leonel Jesus"]
[Black "Fuentes Guinot, Alejandro"]
[Result "0-1"]
[ECO "E05"]
[WhiteElo "1857"]
[BlackElo "2262"]
[Annotator "RC"]
[PlyCount "75"]
[EventDate "2024.12.26"]
[EventCountry "ESP"]
[SourceTitle "playchess.com"]
[Source "ChessBase"]
[SourceQuality "1"]
[TimeControl "5400+30"]

1. d4 {[%emt 0:01:39]} d5 {[%emt 0:00:14]} 2. c4 {[%emt 0:00:34]} e6 {[%emt 0:00:08]} 3. Nf3 {[%emt 0:00:36]} Nf6 {[%emt 0:00:09]} 4. g3 {[%emt 0:00:40]} Be7 {[%emt 0:00:41]} 5. Bg2 {[%emt 0:00:17]} O-O {[%emt 0:00:11]} 6. O-O {[%emt 0:00:18]} dxc4 {[%emt 0:00:07]} 7. Qc2 {[%emt 0:00:55]} a6 {[%emt 0:00:08]} 8. a4 {[%emt 0:00:18]} Bd7 {[%emt 0:00:09]} 9. Qxc4 {[%emt 0:00:46]} Bc6 {[%emt 0:00:08]} 10. Bg5 {[%emt 0:01:10]} Bd5 {[%emt 0:03:52]} 11. Qc2 {[%emt 0:05:49]} Nc6 {[%emt 0:00:44]} 12. Bxf6 {[%emt 0:09:21]} gxf6 {[%emt 0:00:53]} 13. e4 {[%emt 0:10:46]} Nb4 {[%emt 1:29:36]} 14. Qe2 {[%emt 1:04:21]} Bc6 {[%emt 0:00:00]} 15. Nc3 {[%emt 0:00:00]} Kh8 {[%emt 0:00:00]} 16. Rad1 {[%emt 0:00:00]} Qe8 {[%emt 0:00:00]} 17. Qc4 {[%emt 0:00:00]} b5 {[%emt 0:00:00]} 18. axb5 {[%emt 0:00:00]} axb5 {[%emt 0:00:00]} 19. Qe2 {[%emt 0:00:00]} Na2 {[%emt 0:00:00]} 20. Rfe1 {[%emt 0:00:00]} b4 {[%emt 0:00:00]} 21. Nxa2 {[%emt 0:00:00]} Rxa2 {[%emt 0:00:00]} 22. d5 {[%emt 0:00:00]} Bb5 {[%emt 0:00:00]} 23. Qd2 {[%emt 0:00:00]} e5 {[%emt 0:00:00]} 24. Bh3 {[%emt 0:00:00]} Rg8 {[%emt 0:00:00]} 25. Nh4 {[%emt 0:00:00]} Bc5 {[%emt 0:00:00]} 26. Nf5 {[%emt 0:00:00]} Qf8 {[%emt 0:00:00]} 27. Ra1 {[%emt 0:00:00]} Qa8 {[%emt 0:00:00]} 28. Rac1 {[%emt 0:00:00]} Qa7 {[%emt 0:00:00]} 29. d6 {[%emt 0:00:00]} Bd7 {[%emt 0:00:00]} 30. dxc7 {[%emt 0:01:26]} Be6 {[%emt 0:00:00]} 31. Kg2 {[%emt 0:03:50]} Qxc7 {[%emt 0:00:00]} 32. Red1 {[%emt 0:01:11]} Raa8 {[%emt 0:00:00]} 33. Qxb4 {[%emt 0:00:52]} Bxb4 {[%emt 0:00:00]} 34. Rxc7 {[%emt 0:00:05]} Ba5 {[%emt 0:00:00]} 35. Rb7 {[%emt 0:01:12]} Rgb8 {[%emt 0:00:00]} 36. Rxb8+ {[%emt 0:01:17]} Rxb8 {[%emt 0:00:00]} 37. Ra1 {[%emt 0:01:00]} Bb6 {[%emt 0:00:00]} 38. b4 {[%emt 0:01:07]} 0-1

[Event "Navidad Barcelona IM2 2024"]
[Site "Barcelona"]
[Date "2024.12.27"]
[Round "2.5"]
[White "Cruz, Filemon"]
[Black "Masague Artero, Guerau"]
[Result "1/2-1/2"]
[ECO "A07"]
[WhiteElo "2234"]
[BlackElo "2265"]
[Annotator "RC"]
[PlyCount "51"]
[EventDate "2024.12.26"]
[EventCountry "ESP"]
[SourceTitle "playchess.com"]
[Source "ChessBase"]
[SourceQuality "1"]
[TimeControl "5400+30"]

1. Nf3 {[%emt 0:07:32]} d5 {[%emt 0:00:07]} 2. g3 {[%emt 0:00:06]} Nc6 {[%emt 0:00:03]} 3. Bg2 {[%emt 0:02:04]} e5 {[%emt 0:00:07]} 4. d3 {[%emt 0:00:52]} f6 {[%emt 0:00:24]} 5. O-O {[%emt 0:02:04]} Be6 {[%emt 0:00:15]} 6. e4 {[%emt 0:00:19]} d4 {[%emt 0:11:48]} 7. Nh4 {[%emt 0:01:23]} Nge7 {[%emt 0:05:55]} 8. f4 {[%emt 0:00:24]} exf4 {[%emt 0:06:29]} 9. gxf4 {[%emt 0:01:17]} Qd7 {[%emt 0:00:05]} 10. a3 {[%emt 0:11:24]} O-O-O {[%emt 0:07:09]} 11. b4 {[%emt 0:04:51]} g5 {[%emt 0:01:54]} 12. fxg5 {[%emt 0:05:01]} fxg5 {[%emt 0:00:09]} 13. Bxg5 {[%emt 0:00:10]} Rg8 {[%emt 0:02:24]} 14. Bf4 {[%emt 0:05:55]} Ng6 {[%emt 0:07:02]} 15. Nxg6 {[%emt 0:08:55]} Rxg6 {[%emt 0:00:15]} 16. b5 {[%emt 0:02:10]} Qg7 {[%emt 0:09:12]} 17. bxc6 {[%emt 0:04:50]} Rxg2+ {[%emt 0:00:47]} 18. Kh1 {[%emt 0:00:09]} Bd6 {[%emt 0:25:47]} 19. Qf3 {[%emt 0:13:37]} Rg8 {[%emt 0:00:49]} 20. Nd2 {[%emt 0:27:27]} Rxh2+ {[%emt 0:02:46]} 21. Bxh2 {[%emt 0:00:00]} Bxh2 {[%emt 0:00:04]} 22. Rf2 {[%emt 0:00:00]} Be5 {[%emt 0:02:19]} 23. Qh5 {[%emt 0:00:00]} Bg4 {[%emt 0:02:26]} 24. Qh4 {[%emt 0:00:00]} bxc6 {[%emt 0:03:21]} 25. Rg1 {[%emt 0:00:00]} h5 {[%emt 0:04:56]} 26. Rff1 {[%emt 0:03:00]} 1/2-1/2

[Event "Navidad Barcelona IM2 2024"]
[Site "Barcelona"]
[Date "2024.12.27"]
[Round "3.1"]
[White "Masague Artero, Guerau"]
[Black "Cruz, Jonathan"]
[Result "1-0"]
[ECO "B38"]
[WhiteElo "2265"]
[BlackElo "2342"]
[Annotator "TA"]
[PlyCount "95"]
[EventDate "2024.12.26"]
[EventCountry "ESP"]
[SourceTitle "playchess.com"]
[Source "ChessBase"]
[SourceQuality "1"]
[TimeControl "5400+30"]

{[%evp 21,95,68,60,59,89,74,71,90,89,88,125,94,139,70,83,59,126,56,58,49,51,49,44,15,79,77,67,64,63,66,66,67,96,87,90,89,96,60,108,111,119,108,122,66,129,103,109,83,93,75,106,97,102,103,102,85,495,488,477,494,481,483,550,514,575,370,343,349,356,362,684,668,2139,2137,29993,29994]} 1. c4 {[%emt 0:00:03]} Nf6 {[%emt 0:04:36]} 2. Nc3 {[%emt 0:00:06]} c5 {[%emt 0:01:09]} 3. Nf3 {[%emt 0:00:10]} g6 {[%emt 0:00:17]} 4. e4 {[%emt 0:00:24]} Bg7 {[%emt 0:02:21]} 5. d4 {[%emt 0:00:23]} cxd4 {[%emt 0:04:49]} 6. Nxd4 {[%emt 0:00:06]} O-O {[%emt 0:00:09]} 7. Be2 {[%emt 0:01:28]} Nc6 {[%emt 0:01:16]} 8. Be3 {[%emt 0:00:14]} b6 {[%emt 0:01:21]} 9. Qd2 {[%emt 0:11:40]} Bb7 {[%emt 0:02:25]} 10. f3 {[%emt 0:00:28]} Rc8 {[%emt 0:07:31]} 11. O-O {[%emt 0:09:07]} d6 {[%emt 0:03:32]} 12. Rfd1 {[%emt 0:01:47]} Qd7 {[%emt 0:01:18]} 13. Rac1 {[%emt 0:01:00]} Rfd8 {[%emt 0:00:19]} 14. Ndb5 {[%emt 0:03:45]} Qe8 {[%emt 0:08:59]} 15. Nd5 {[%emt 0:03:30]} Qd7 {[%emt 0:04:28]} 16. Bg5 {[%emt 0:03:14]} Ne8 {[%emt 0:01:45]} 17. Bf1 {[%emt 0:03:39]} ({Better is} 17. Nxa7 $1 $16 Nxa7 18. Nxe7+ (18. Bxe7 Ra8 $11) 18... Kh8 19. Nxc8 Rxc8 20. b4) 17... f6 {[%emt 0:07:40]} 18. Bh4 {[%emt 0:03:02][%cal Ob5a7]} e6 {[%emt 0:01:37] [#]} (18... Ra8 $14) 19. Ndc3 {[%emt 0:01:33]} (19. Nxa7 $1 $16 exd5 (19... Nxa7 $2 20. Nxb6 Qf7 21. Nxc8 $18) 20. Nxc8 Rxc8 21. cxd5 (21. Qxd5+ Kf8 $16)) 19... Qf7 $14 {[%emt 0:01:14]} 20. Qf2 {[%emt 0:14:03]} Rd7 {[%emt 0:01:50]} 21. Rc2 {[%emt 0:01:27]} Bh6 {[%emt 0:08:02]} 22. f4 {[%emt 0:04:48]} g5 {[%emt 0:14:32]} (22... Rcd8 $11 {remains equal.}) 23. Bg3 $16 {[%emt 0:09:10]} gxf4 {[%emt 0:03:56]} 24. Bxf4 {[%emt 0:00:09]} Bxf4 {[%emt 0:00:51]} 25. Qxf4 {[%emt 0:00:07][%cal Oc2f2]} Rcd8 {[%emt 0:00:24]} 26. Rcd2 {[%emt 0:00:32]} Qe7 {[%emt 0:00:47]} 27. Rf2 {[%emt 0:05:57]} Kh8 {[%emt 0:16:52]} 28. Qh4 {[%emt 0:01:22]} Qg7 {[%emt 0:00:00]} 29. Qh3 {[%emt 0:02:15]} Qe7 {[%emt 0:00:00]} (29... a6 $14 {deserves consideration.}) 30. Ne2 {[%emt 0:00:10]} Ne5 {[%emt 0:00:00][%csl LRc4,LRe4] [#]} 31. Nf4 $1 {[%emt 0:04:54]} (31. Nxa7 $6 Bxe4 32. Nb5 d5 $11) 31... Ng7 {[%emt 0:00:00]} 32. Nd4 {[%emt 0:02:08]} (32. Nxa7 $6 Bxe4 33. Nb5 Bf5) (32. Re1 $16) 32... Re8 {[%emt 0:00:00]} ({Black should try} 32... Bxe4 $14 33. Nfxe6 (33. Ndxe6 $2 Bf5 $19) 33... Rg8) 33. Re1 {[%emt 0:00:04]} Qf7 {[%emt 0:03:00]} 34. Re3 {[%emt 0:06:59]} f5 {[%emt 0:00:00]} 35. Be2 {[%emt 0:01:18] Dodges Ng4} Qf6 {[%emt 0:00:00] Strongly threatening ...Ng4. Inhibits Qh6.} 36. exf5 {[%emt 0:01:29]} exf5 {[%emt 0:00:00]} 37. Nh5 {[%emt 0:00:56]} Nxh5 {[%emt 0:00:00]} 38. Bxh5 {[%emt 0:00:21]} Nf3+ $2 {[%emt 0:00:00][%mdl 8192] [#]} 39. Qxf3 $1 $18 {[%emt 0:02:47][%mdl 512]} Bxf3 {[%emt 0:00:05]} 40. Rxe8+ {[%emt 0:00:01]} Kg7 {[%emt 0:00:10]} 41. Ne6+ {[%emt 0:01:43]} (41. Bxf3 Qxd4 42. Bd5 h5 $11) ({Less strong is} 41. Nxf3 Re7 $18) 41... Kh6 {[%emt 0:00:05]} 42. Rxf3 {[%emt 0:01:13]} ({Inferior is} 42. Bxf3 Qg6 43. Rf8 Qxe6 $11) 42... Qxb2 {[%emt 0:01:43]} 43. Nf4 {[%emt 0:00:52] Intending Re6+ and mate.} Qd4+ {[%emt 0:00:23]} 44. Kf1 {[%emt 0:01:27]} Qxc4+ {[%emt 0:00:14]} 45. Kf2 {[%emt 0:00:18] Re6+ would now be deadly.} Qxa2+ $2 {[%emt 0:01:15]} (45... Qd4+ 46. Kg3 Qg7+ 47. Kh3 Re7) 46. Re2 {[%emt 0:00:04] Active counter play!} Qc4 {[%emt 0:01:27]} 47. Re6+ {[%emt 0:01:08]} Kg5 {[%emt 0:00:04]} 48. Nh3+ {[%emt 0:01:09]} 1-0

[Event "Navidad Barcelona IM2 2024"]
[Site "Barcelona"]
[Date "2024.12.27"]
[Round "3.2"]
[White "Fuentes Guinot, Alejandro"]
[Black "Cruz, Filemon"]
[Result "1-0"]
[ECO "E15"]
[WhiteElo "2262"]
[BlackElo "2234"]
[Annotator "RC"]
[PlyCount "87"]
[EventDate "2024.12.26"]
[EventCountry "ESP"]
[SourceTitle "playchess.com"]
[Source "ChessBase"]
[SourceQuality "1"]
[TimeControl "5400+30"]

1. d4 {[%emt 0:00:05]} e6 {[%emt 0:04:43]} 2. c4 {[%emt 0:00:12]} Nf6 {[%emt 0:00:23]} 3. Nf3 {[%emt 0:00:07]} b6 {[%emt 0:02:27]} 4. g3 {[%emt 0:00:07]} Ba6 {[%emt 0:01:05]} 5. Qc2 {[%emt 0:00:55]} c5 {[%emt 0:01:30]} 6. Bg2 {[%emt 0:00:59]} Bb7 {[%emt 0:00:21]} 7. dxc5 {[%emt 0:01:52]} Bxc5 {[%emt 0:01:26]} 8. O-O {[%emt 0:00:21]} a6 {[%emt 0:02:40]} 9. Nc3 {[%emt 0:00:24]} Be7 {[%emt 0:00:14]} 10. b3 {[%emt 0:03:31]} d6 {[%emt 0:01:21]} 11. Bb2 {[%emt 0:00:40]} Nbd7 {[%emt 0:00:18]} 12. e4 {[%emt 0:00:57]} Rc8 {[%emt 0:00:26]} 13. Qe2 {[%emt 0:00:15]} O-O {[%emt 0:02:34]} 14. Nd2 {[%emt 0:02:07]} Re8 {[%emt 0:05:30]} 15. e5 {[%emt 0:01:43]} Bxg2 {[%emt 0:00:58]} 16. exf6 {[%emt 0:00:36]} Bxf1 {[%emt 0:02:30]} 17. fxe7 {[%emt 0:00:09]} Bxe2 {[%emt 0:01:08]} 18. exd8=Q {[%emt 0:00:12]} Rexd8 {[%emt 0:00:04]} 19. Nxe2 {[%emt 0:00:19]} d5 {[%emt 0:01:00]} 20. Bd4 {[%emt 0:30:58]} e5 {[%emt 0:06:30]} 21. Bc3 {[%emt 0:01:04]} d4 {[%emt 0:00:30]} 22. Bb4 {[%emt 0:00:22]} Nc5 {[%emt 0:00:58]} 23. Bxc5 {[%emt 0:04:57]} bxc5 {[%emt 0:00:13]} 24. g4 {[%emt 0:00:32]} g6 {[%emt 0:04:07]} 25. g5 {[%emt 0:01:09]} h6 {[%emt 0:00:37]} 26. h4 {[%emt 0:01:09]} Kg7 {[%emt 0:00:49]} 27. Re1 {[%emt 0:03:11]} a5 {[%emt 0:03:22]} 28. Nc1 {[%emt 0:06:15]} d3 {[%emt 0:02:07]} 29. Rxe5 {[%emt 0:02:25]} Rd4 {[%emt 0:02:14]} 30. Kf1 {[%emt 0:14:39]} Rcd8 {[%emt 0:01:21]} 31. Re3 {[%emt 0:00:29]} Rxh4 {[%emt 0:07:19]} 32. gxh6+ {[%emt 0:00:38]} Rxh6 {[%emt 0:00:35]} 33. Nxd3 {[%emt 0:00:13]} Rh1+ {[%emt 0:00:07]} 34. Ke2 {[%emt 0:00:15]} a4 {[%emt 0:05:00]} 35. Nxc5 {[%emt 0:02:26]} Ra1 {[%emt 0:01:47]} 36. Nxa4 {[%emt 0:01:04]} Rxa2 {[%emt 0:00:05]} 37. Rd3 {[%emt 0:00:47]} Re8+ {[%emt 0:00:15]} 38. Kf3 {[%emt 0:00:40]} f5 {[%emt 0:00:16]} 39. Nc3 {[%emt 0:01:09]} Rb2 {[%emt 0:00:13]} 40. c5 {[%emt 0:02:38]} Rc8 {[%emt 0:00:22]} 41. Na4 {[%emt 0:00:29]} Ra2 {[%emt 0:00:06]} 42. Nc4 {[%emt 0:01:09]} Rc7 {[%emt 0:06:34]} 43. Re3 {[%emt 0:04:14]} Kf6 {[%emt 0:02:02]} 44. Nc3 {[%emt 0:00:20]} 1-0

[Event "Navidad Barcelona IM2 2024"]
[Site "Barcelona"]
[Date "2024.12.27"]
[Round "3.3"]
[White "Rojas Keim, Luis"]
[Black "Abreu Sanchez, Leonel Jesus"]
[Result "1-0"]
[ECO "C26"]
[WhiteElo "2326"]
[BlackElo "1857"]
[Annotator "RC"]
[PlyCount "75"]
[EventDate "2024.12.26"]
[EventCountry "ESP"]
[SourceTitle "playchess.com"]
[Source "ChessBase"]
[SourceQuality "1"]
[TimeControl "5400+30"]

1. e4 {[%emt 0:00:03]} e5 {[%emt 0:00:26]} 2. Nc3 {[%emt 0:00:22]} Nf6 {[%emt 0:00:40]} 3. g3 {[%emt 0:00:05]} g6 {[%emt 0:01:32]} 4. Bg2 {[%emt 0:00:24]} Bg7 {[%emt 0:00:07]} 5. Nge2 {[%emt 0:00:52]} O-O {[%emt 0:00:36]} 6. O-O {[%emt 0:00:17]} Nc6 {[%emt 0:02:30]} 7. f4 {[%emt 0:00:51]} d6 {[%emt 0:05:59]} 8. h3 {[%emt 0:01:35]} exf4 {[%emt 0:09:03]} 9. Nxf4 {[%emt 1:30:31]} Nd4 {[%emt 0:05:08]} 10. d3 {[%emt 0:00:00]} c6 {[%emt 0:02:50]} 11. Be3 {[%emt 0:00:00]} Nd7 {[%emt 0:08:19]} 12. Kh1 {[%emt 0:00:00]} Nc5 {[%emt 0:01:47]} 13. g4 {[%emt 0:00:00]} Bd7 {[%emt 0:06:36]} 14. Qd2 {[%emt 0:00:00]} Qe7 {[%emt 0:11:57]} 15. Rae1 {[%emt 0:00:00]} Rae8 {[%emt 0:01:54]} 16. Qf2 {[%emt 0:00:00]} Nce6 {[%emt 0:04:56]} 17. Nd1 {[%emt 0:00:00]} Nxf4 {[%emt 0:04:02]} 18. Bxf4 {[%emt 0:00:00]} b6 {[%emt 0:04:55]} 19. c3 {[%emt 0:00:00]} Ne6 {[%emt 0:00:24]} 20. Bg3 {[%emt 0:00:00]} Nc5 {[%emt 0:08:11]} 21. Qd2 {[%emt 0:00:00]} Bf6 {[%emt 0:04:45]} 22. d4 {[%emt 0:00:00]} Bg5 {[%emt 0:00:16]} 23. Qc2 {[%emt 0:00:00]} Ne6 {[%emt 0:00:18]} 24. Qf2 {[%emt 0:00:00]} f6 {[%emt 0:02:18]} 25. Ne3 {[%emt 0:00:00]} Nd8 {[%emt 0:02:01]} 26. Nc4 {[%emt 0:00:00]} Nb7 {[%emt 0:12:00]} 27. a4 {[%emt 0:00:00]} Be6 {[%emt 0:00:00]} 28. d5 {[%emt 0:00:00]} Bd7 {[%emt 0:00:00]} 29. dxc6 {[%emt 0:00:00]} Bxc6 {[%emt 0:00:00]} 30. Qd4 {[%emt 0:00:00]} Rd8 {[%emt 0:00:00]} 31. Nxb6 {[%emt 0:00:00]} axb6 {[%emt 0:00:00]} 32. Qc4+ {[%emt 0:00:00]} Kh8 {[%emt 0:00:00]} 33. Qxc6 {[%emt 0:00:00]} Nc5 {[%emt 0:00:00]} 34. Rd1 {[%emt 0:00:00]} Rfe8 {[%emt 0:00:00]} 35. Bxd6 {[%emt 0:00:00]} Qe6 {[%emt 0:00:00]} 36. e5 {[%emt 0:00:00]} Rc8 {[%emt 0:01:43]} 37. Qxb6 {[%emt 0:00:00]} Nxa4 {[%emt 0:00:06]} 38. Qb5 {[%emt 0:00:00]} 1-0

[Event "Navidad Barcelona IM2 2024"]
[Site "Barcelona"]
[Date "2024.12.27"]
[Round "3.4"]
[White "Ayats Llobera, Gerard"]
[Black "Martin Barcelo, Carles"]
[Result "1/2-1/2"]
[ECO "B12"]
[WhiteElo "2451"]
[BlackElo "2257"]
[Annotator "TA"]
[PlyCount "61"]
[EventDate "2024.12.26"]
[EventCountry "ESP"]
[SourceTitle "playchess.com"]
[Source "ChessBase"]
[SourceQuality "1"]
[TimeControl "5400+30"]

{[%evp 9,61,13,21,18,19,16,15,8,12,15,26,16,27,11,13,14,14,0,5,7,12,5,6,6,2,-4,-18,-15,0,0,7,-14,-4,-27,-24,-27,0,-19,0,-13,-6,-31,-26,-125,-143,-121,-82,-90,-60,-60,-27,-144,-123,-176]} 1. e4 {[%emt 1:31:00]} c6 {[%emt 0:02:57]} 2. d4 {[%emt 0:00:00]} d5 {[%emt 0:00:05]} 3. e5 {[%emt 0:00:00]} c5 {[%emt 0:00:14]} 4. dxc5 {[%emt 0:00:00]} e6 {[%emt 0:01:10]} 5. Bd3 {[%emt 0:00:00]} Nc6 {[%emt 0:00:38]} 6. Nf3 {[%emt 0:00:00]} Bxc5 {[%emt 0:00:19]} 7. O-O {[%emt 0:00:00]} Nge7 {[%emt 0:01:06]} 8. Nbd2 {[%emt 0:00:00]} Ng6 {[%emt 0:01:58]} 9. Nb3 {[%emt 0:00:00] And now Bxg6 would win.} Bb6 {[%emt 0:00:15]} 10. Re1 {[%emt 0:00:00]} O-O {[%emt 0:00:29]} 11. Bxg6 {[%emt 0:00:00]} fxg6 {[%emt 0:00:12]} 12. c3 {[%emt 0:00:00]} h6 {[%emt 0:11:01]} 13. Nbd4 {[%emt 0:00:00]} Nxd4 {[%emt 0:16:11]} 14. Nxd4 {[%emt 0:00:00]} g5 {[%emt 0:02:03]} 15. Be3 {[%emt 0:00:00]} Bd7 {[%emt 0:00:58]} 16. Qg4 {[%emt 0:00:00]} Kh8 {[%emt 0:06:36]} 17. Nf3 {[%emt 0:00:00]} (17. Nxe6 $2 Bxe3 18. Rxe3 Qb6 $19) 17... Bxe3 {[%emt 0:09:30]} 18. fxe3 {[%emt 0:00:00]} Qc7 {[%emt 0:08:22]} 19. Rad1 {[%emt 0:00:00]} Rac8 {[%emt 0:03:08]} 20. Qb4 {[%emt 0:00:00]} Kg8 {[%emt 0:02:45]} 21. Rf1 {[%emt 0:00:00]} a5 {[%emt 0:05:18]} 22. Qd4 {[%emt 0:00:00]} b6 {[%emt 0:09:35]} 23. h3 {[%emt 0:00:00]} Rf5 {[%emt 0:02:56]} 24. Rf2 {[%emt 0:00:00]} Be8 {[%emt 0:02:49]} 25. Rdd2 {[%emt 0:03:27]} Bg6 {[%emt 0:09:27]} 26. g4 {[%emt 0:00:48]} (26. c4 $11) 26... Rff8 $17 {[%emt 0:01:10]} 27. Rde2 {[%emt 0:00:22]} Rf7 {[%emt 0:01:51]} 28. Nd2 {[%emt 0:00:34]} Rxf2 {[%emt 0:00:52]} 29. Rxf2 {[%emt 0:00:06]} Qc5 {[%emt 0:00:30]} 30. Kg2 {[%emt 0:05:37] [#]} (30. Qxc5 $11 {remains equal.} Rxc5 (30... bxc5 31. e4 $15) 31. Nf3) 30... Qb5 $1 {[%emt 0:00:27]} 31. b3 {[%emt 0:02:42]} (31. Nf1 $17 {might work better.}) 1/2-1/2

[Event "Navidad Barcelona IM2 2024"]
[Site "Barcelona"]
[Date "2024.12.27"]
[Round "3.5"]
[White "Gonzalez, Raul Omar"]
[Black "Serrahima Susany, Ramon"]
[Result "1-0"]
[ECO "D31"]
[WhiteElo "2131"]
[BlackElo "2020"]
[Annotator "RC"]
[PlyCount "107"]
[EventDate "2024.12.26"]
[EventCountry "ESP"]
[SourceTitle "playchess.com"]
[Source "ChessBase"]
[SourceQuality "1"]
[TimeControl "5400+30"]

1. c4 {[%emt 0:00:04]} e6 {[%emt 0:00:08]} 2. e3 {[%emt 0:00:51]} d5 {[%emt 0:00:07]} 3. d4 {[%emt 0:00:08]} c6 {[%emt 0:00:10]} 4. Nc3 {[%emt 0:00:23]} Nf6 {[%emt 0:00:07]} 5. b3 {[%emt 0:00:52]} Qa5 {[%emt 0:00:22]} 6. Bd2 {[%emt 0:00:09]} Bb4 {[%emt 0:01:01]} 7. Qc2 {[%emt 0:00:35]} Qc7 {[%emt 0:01:40]} 8. Nf3 {[%emt 0:00:29]} Nbd7 {[%emt 0:01:08]} 9. Bd3 {[%emt 0:01:43]} dxc4 {[%emt 0:03:02]} 10. bxc4 {[%emt 0:00:56]} e5 {[%emt 0:01:34]} 11. O-O {[%emt 0:00:34]} O-O {[%emt 0:00:23]} 12. a3 {[%emt 0:00:28]} Be7 {[%emt 0:01:19]} 13. Rfd1 {[%emt 0:02:10]} Re8 {[%emt 0:04:37]} 14. c5 {[%emt 0:07:20]} exd4 {[%emt 0:00:28]} 15. exd4 {[%emt 0:00:10]} Nf8 {[%emt 0:00:48]} 16. Re1 {[%emt 0:03:15]} Be6 {[%emt 0:01:00]} 17. g3 {[%emt 0:09:29]} Rad8 {[%emt 0:00:28]} 18. Bf4 {[%emt 0:00:43]} Qc8 {[%emt 0:00:50]} 19. Be5 {[%emt 0:15:04]} Ng6 {[%emt 0:11:10]} 20. Ng5 {[%emt 0:08:48]} Bd7 {[%emt 0:32:05]} 21. Bc4 {[%emt 0:12:27]} Nd5 {[%emt 0:00:25]} 22. Nge4 {[%emt 0:02:39]} Bf5 {[%emt 0:01:26]} 23. Qb3 {[%emt 0:01:33]} Nxe5 {[%emt 0:02:55]} 24. dxe5 {[%emt 0:01:04]} Be6 {[%emt 0:04:50]} 25. Nd6 {[%emt 0:00:45]} Bxd6 {[%emt 0:00:26]} 26. cxd6 {[%emt 0:00:28]} Nxc3 {[%emt 0:03:17]} 27. Qxc3 {[%emt 0:02:57]} Bxc4 {[%emt 0:03:30]} 28. Qxc4 {[%emt 0:00:07]} Qf5 {[%emt 0:01:13]} 29. Qc3 {[%emt 0:01:28]} Rd7 {[%emt 0:03:12]} 30. Rad1 {[%emt 0:00:39]} h6 {[%emt 0:01:27]} 31. Re3 {[%emt 0:01:48]} Qe6 {[%emt 0:03:54]} 32. Rd4 {[%emt 0:02:05]} Qf5 {[%emt 0:02:13]} 33. Rf4 {[%emt 0:01:15]} Qb1+ {[%emt 0:00:24]} 34. Kg2 {[%emt 0:24:04]} Qa2 {[%emt 0:00:42]} 35. Rd4 {[%emt 0:00:00]} Qb1 {[%emt 0:02:27]} 36. Rb4 {[%emt 0:00:00]} Qd1 {[%emt 0:02:08]} 37. Rd4 {[%emt 0:00:00]} Qb1 {[%emt 0:00:11]} 38. Qd2 {[%emt 0:00:00]} Qb5 {[%emt 0:02:33]} 39. Rde4 {[%emt 0:00:00]} Re6 {[%emt 0:04:18]} 40. f4 {[%emt 0:00:00]} g6 {[%emt 0:02:12]} 41. g4 {[%emt 0:00:00]} f5 {[%emt 0:01:14]} 42. gxf5 {[%emt 0:00:00]} gxf5 {[%emt 0:00:09]} 43. Rg3+ {[%emt 0:00:00]} Kh7 {[%emt 0:00:31]} 44. Rd4 {[%emt 0:00:00]} Qb1 {[%emt 0:01:33]} 45. Rb4 {[%emt 0:00:00]} Qa1 {[%emt 0:01:22]} 46. Qc2 {[%emt 0:00:00]} Rxe5 {[%emt 0:00:13]} 47. fxe5 {[%emt 0:00:00]} Qxe5 {[%emt 0:00:02]} 48. Qc4 {[%emt 0:00:00]} Qe8 {[%emt 0:00:50]} 49. Qd3 {[%emt 0:00:00]} Qe5 {[%emt 0:01:02]} 50. Rbg4 {[%emt 0:00:00]} Qb2+ {[%emt 0:01:06]} 51. Kh3 {[%emt 0:00:00]} Qe5 {[%emt 0:00:04]} 52. Rg6 {[%emt 0:00:00]} b6 {[%emt 0:00:45]} 53. Qc4 {[%emt 0:01:12]} Qe8 {[%emt 0:00:54]} 54. Qe6 {[%emt 0:00:25]} 1-0